Cogmind - Beta 9.3 @@@ ROGUE MODE // 2020.01.05 @ 20:02:34 Player: mrbill82 Result: Destroyed by L-31 Rogue with Katana Performance ------------- Evolutions (1) 500 Regions Visited (3) 600 Robots Destroyed (42) 210 Value Destroyed (869) 869 Prototype IDs (2) 40 Alien Tech Used (0) 0 Bonus (0) 0 TOTAL SCORE: 2219 Bonus ------- None Cogmind --------- Core Integrity 0/400 Matter 300/300 Energy 100/100 System Corruption 2% Temperature Cool (0) Movement Core (150) Ox2 Location -9/Mines Parts ------- > --- POWER (1) -------- (None) > --- PROPULSION (3) --- (None) > --- UTILITY (3) ------ Medium Storage Unit Seismic Analyzer > --- WEAPON (2) ------- (None) > --- INVENTORY (8) ---- Aluminum Leg Large Battery (300) High-capacity Matter Pod (200) Peak State ------------ > --- POWER ------------ Light Ion Engine > --- PROPULSION ------- Aluminum Leg Aluminum Leg Improved Aluminum Leg > --- UTILITY ---------- Medium Storage Unit Targeting Computer Medium Armor Plating > --- WEAPON ----------- Spread Laser Spread Laser > --- INVENTORY -------- Light Ion Engine Light Ion Engine High-capacity Matter Pod Medium Armor Plating EM Pulse Gun Spread Laser Assault Rifle Grenade Launcher [Rating: 14] Favorites ----------- Power Light Ion Engine Engine Light Ion Engine Propulsion Aluminum Leg Leg Aluminum Leg Utility Medium Storage Unit Device Heat Sink Storage Medium Storage Unit Processor Seismic Analyzer Protection Medium Armor Plating Weapon Spread Laser Energy Gun Spread Laser Ballistic Gun Assault Rifle Launcher Grenade Launcher Special Weapon Welding Torch Special Melee Weapon Datajack Build | -11 -10 -9 -9 ------- Run | Scr Mat Mat Min Slots Evolved 2 | . . 2 . Power . | . . . . Propulsion 1 | . . 1 . Utility 1 | . . 1 . Weapon . | . . . . Parts Attached 52 | 6 12 18 16 Power 6 | 1 1 3 1 Engine 6 | 1 1 3 1 Core . | . . . . Reactor . | . . . . Propulsion 18 | 2 3 9 4 Treads . | . . . . Leg 18 | 2 3 9 4 Wheel . | . . . . Hover . | . . . . Flight . | . . . . Utility 12 | 1 3 4 4 Device 2 | . . 1 1 Storage 4 | 1 1 . 2 Processor 3 | . 2 . 1 Hackware . | . . . . Protection 3 | . . 3 . Artifact . | . . . . Weapon 16 | 2 5 2 7 Energy Gun 7 | . 4 1 2 Energy Cannon . | . . . . Ballistic Gun 4 | 2 . 1 1 Ballistic Cannon . | . . . . Launcher 1 | . . . 1 Special Weapon 2 | . . . 2 Impact Weapon . | . . . . Slashing Weapon . | . . . . Piercing Weapon . | . . . . Special Melee Weapon 2 | . 1 . 1 Unidentified Prototypes . | . . . . Parts Lost 25 | . 1 5 19 Power 2 | . . . 2 Propulsion 8 | . . 2 6 Utility 5 | . . 2 3 Weapon 10 | . 1 1 8 Highest Loss Streak 10 | . 1 4 10 Average Slot Usage (%) 91 | . 95 93 81 Engine 12 | . 14 11 10 Leg 28 | . 28 31 24 Device 2 | . . 1 9 Storage 12 | . 14 11 11 Processor 9 | . 11 8 4 Protection 3 | . . 8 2 Energy Gun 12 | . 14 13 7 Ballistic Gun 5 | . 4 7 3 Special Melee Weapon 4 | . 7 . 4 Naked Turns . | . . . . Heaviest Build 24 | 13 19 24 24 Greatest Support 33 | 20 20 33 30 Greatest Overweight (x) 3 | 1 . 1 3 Average Overweight (x) . | . . . . Largest Inventory Capacity 8 | 6 8 8 8 Average Capacity 7 | 5 7 8 8 Most Carried 8 | 2 8 8 8 Average Carried 6 | 1 7 7 5 Final Capacity 8 | 6 8 8 8 Final Carried 8 | 2 7 8 3 Class Distribution -------------------- 78% | Mutant 21% | Scavenger-Mutant Dominant Class ---------------- Mutant | -10/Materials Mutant | -9/Materials Scavenger-Mutant | -9/Mines Resources | -11 -10 -9 -9 ----------- Run | Scr Mat Mat Min Matter Collected 1018 | 250 237 382 149 Remotely . | . . . . Salvage Created 931 | . 237 596 98 Parts 71 | . 24 41 6 Haulers Intercepted . | . . . . Recyclers Shooed . | . . . . Parts Field Recycled . | . . . . Retrieved Matter . | . . . . Parts Self-Destructed . | . . . . Prevented . | . . . . Kills | -11 -10 -9 -9 ------- Run | Scr Mat Mat Min Combat Hostiles Destroyed 39 | . 13 17 9 Guns 34 | . 13 17 4 AOE 5 | . . . 5 Classes Destroyed 9 | . 2 4 3 Builder 1 | . . . 1 Operator 1 | . . 1 . Watcher 1 | . . 1 . Swarmer 12 | . 9 3 . Grunt 15 | . 4 11 . Brawler 1 | . . 1 . Sentry 2 | . . 2 . Demolisher 1 | . . . 1 Assembled 8 | . . . 8 Best Kill Streak 8 | . 3 6 8 Combat Bots Only 7 | . 3 6 7 Max Kills in Single Turn 3 | . 1 2 3 Gunslinging 1 | . . 1 . Exploded 2 | . . . 2 Melee . | . . . . Uniques/NPCs Destroyed . | . . . . Combat | -11 -10 -9 -9 -------- Run | Scr Mat Mat Min Damage Taken 2511 | . 407 841 1263 Core 580 | . 155 156 269 Absorbed by Shields . | . . . . Core Remaining (%) 69 | 100 38 . . Volleys Fired 110 | . 34 45 31 Largest 2 | . 2 2 2 Hottest 130 | . 130 130 120 Shots Fired 154 | . 44 74 36 Gun 138 | . 44 74 20 Cannon . | . . . . Launcher 4 | . . . 4 Special 12 | . . . 12 Kinetic 53 | . 16 34 3 Thermal 90 | . 28 40 22 Explosive 4 | . . . 4 Electromagnetic 7 | . . . 7 Robot Hit Streak 22 | . 11 22 5 Robot Miss Streak 5 | . 5 4 4 Penetration Max . | . . . . Secondary Targets 8 | . . 8 . Max Gunslinging Chain 1 | . . 1 . Shots Hit Robots 127 | . 45 59 23 Core Hits 141 | . 35 69 37 Critical Hits . | . . . . Critical Kills . | . . . . Critical Parts Destroyed . | . . . . Melee Attacks 4 | . 4 . . Impact . | . . . . Slashing . | . . . . Piercing . | . . . . Sneak Attacks 4 | . 4 . . Combat Hostiles . | . . . . Follow-up Attacks . | . . . . Damage Inflicted 1841 | . 397 683 761 Guns 1279 | . 397 683 199 Cannons . | . . . . Explosions 513 | . . . 513 Melee . | . . . . Ramming 5 | . . . 5 Kinetic 393 | . 164 204 25 Thermal 886 | . 233 479 174 Explosive 513 | . . . 513 Electromagnetic 44 | . . . 44 Impact . | . . . . Slashing . | . . . . Piercing . | . . . . Highest Corruption 2 | . . 2 2 Average Corruption 2 | . . 2 2 Corruption Purged . | . . . . Effects 7 | . . 2 5 Message Errors 4 | . . . 4 Heat Flow Errors 1 | . . 1 . Energy Discharges 1 | . . . 1 Weapon Failures 1 | . . 1 . Overload Shots . | . . . . Overflow Damage 13 | . . . 13 Projectiles . | . . . . Explosions 13 | . . . 13 Melee . | . . . . Knockbacks . | . . . . Impact . | . . . . Kinetic . | . . . . Secondary . | . . . . Self-Inflicted Damage 65 | . . . 65 Shots 3 | . . . 3 Rammed . | . . . . Targets Rammed 2 | . . . 2 Kicked 2 | . . . 2 Crushed . | . . . . Highest Temperature 506 | . 144 506 69 Average Temperature 113 | . 51 159 18 Received Heat Transfer 652 | . 84 306 262 Effects 10 | . . 10 . Shutdowns 2 | . . 2 . Energy Bleed 5 | . . 5 . Interference 2 | . . 2 . Matter Decay 1 | . . 1 . Siege Activations . | . . . . Robots Corrupted . | . . . . Combat Hostiles . | . . . . Parts Fried . | . . . . Impact Corruptions . | . . . . Robots Melted . | . . . . Combat Hostiles . | . . . . Parts Melted . | . . . . Heat Transferred 1270 | . 285 595 390 Parts Sabotaged . | . . . . Parts Stolen . | . . . . Parts Stripped . | . . . . Power Chain Reactions . | . . . . Missiles Intercepted . | . . . . Alert | -11 -10 -9 -9 ------- Run | Scr Mat Mat Min Peak Influence 330 | . 205 330 117 Average Influence 110 | . 69 211 65 Maximum Alert Level 1 | . 1 1 . Low Security (%) 75 | 100 87 38 100 Level 1 24 | . 12 61 . Level 2 . | . . . . Level 3 . | . . . . Level 4 . | . . . . Level 5 . | . . . . High Security . | . . . . Max Security . | . . . . Squads Dispatched 5 | . 2 3 . Investigation . | . . . . Extermination . | . . . . Reinforcement 5 | . 2 3 . Assault . | . . . . Garrison . | . . . . Intercept . | . . . . Construction Impeded . | . . . . Haulers Reinforced . | . . . . Stealth | -11 -10 -9 -9 --------- Run | Scr Mat Mat Min Distress Signals 4 | . 2 2 . Communications Jammed . | . . . . Distress Signals . | . . . . Times Spotted 82 | . 25 29 28 Peak Tracking Total 19 | . 5 8 19 Tactical Retreats 8 | . 6 1 1 Traps | -11 -10 -9 -9 ------- Run | Scr Mat Mat Min Traps Triggered . | . . . . Indirectly . | . . . . Trap Hack Attempts . | . . . . Triggered . | . . . . Disarmed 6 | . 6 . . Reprogrammed . | . . . . Reused . | . . . . Traps Extracted . | . . . . Installed . | . . . . Triggered . | . . . . Machines | -11 -10 -9 -9 ---------- Run | Scr Mat Mat Min Machines Disabled 1 | . . 1 . Max in Single Turn 1 | . . 1 . Machines Sabotaged . | . . . . Garrisons Compromised . | . . . . Overloaded Fab Kills . | . . . . Fab Network Shutdowns . | . . . . Hacking | -11 -10 -9 -9 --------- Run | Scr Mat Mat Min Machines Accessed 8 | . 4 4 . Terminals 4 | . 3 1 . Fabricators . | . . . . Repair Stations . | . . . . Recycling Units 3 | . 1 2 . Scanalyzers 1 | . . 1 . Garrison Access . | . . . . Total Hacks 25 | . 11 14 . Successful 19 | . 9 10 . Failed 6 | . 2 4 . Catastrophic 1 | . . 1 . Database Lockouts . | . . . . Manual . | . . . . Terminals 14 | . 10 4 . Fabricators . | . . . . Repair Stations . | . . . . Recycling Units 9 | . 1 8 . Scanalyzers 2 | . . 2 . Garrison Access . | . . . . Terminal Hacks 10 | . 8 2 . Prototype ID Bank 1 | . . 1 . Alert Level 1 | . 1 . . Unreport Threat 1 | . 1 . . Locate Traps 2 | . 1 1 . Disarm Traps 1 | . 1 . . Dispatch Records 1 | . 1 . . Recall Investigation 1 | . 1 . . Registered Components 1 | . 1 . . Zone Layout 1 | . 1 . . Fabricator Hacks . | . . . . Repair Station Hacks . | . . . . Recycling Unit Hacks 7 | . 1 6 . Recycle Component 1 | . . 1 . Process 1 | . . 1 . Report Inventory 3 | . 1 2 . Retrieve Matter 1 | . . 1 . Retrieve Components 1 | . . 1 . Scanalyzer 2 | . . 2 . Insert Component 1 | . . 1 . Analyze 1 | . . 1 . Garrison Access Hacks . | . . . . Unauthorized Hacks . | . . . . Terminals . | . . . . Fabricators . | . . . . Repair Stations . | . . . . Recycling Units . | . . . . Scanalyzers . | . . . . Garrison Access . | . . . . Data Cores Recovered . | . . . . Used . | . . . . Hacking Detections 4 | . 2 2 . Full Trace Events 2 | . 2 . . Feedback Events . | . . . . Feedback Blocked . | . . . . Robot Schematics Acquired . | . . . . Robots Built . | . . . . Matter . | . . . . Time . | . . . . Total Robot Build Rating . | . . . . Part Schematics Acquired 1 | . . 1 . Parts Built . | . . . . Matter . | . . . . Time . | . . . . Total Part Build Rating . | . . . . Parts Repaired . | . . . . Time . | . . . . Parts Recycled 1 | . . 1 . Recycled Matter 1 | . . 1 . Retrieved Matter 1 | . . 1 . Retrieved Components 3 | . . 3 . Parts Scanalyzed 1 | . . 1 . Part Schematics Acquired 1 | . . 1 . Parts Damaged . | . . . . Bothacking | -11 -10 -9 -9 ------------ Run | Scr Mat Mat Min Used RIF Installer . | . . . . Robots Hacked 4 | . 4 . . Non-combat 4 | . 4 . . Combat . | . . . . Robot Hacks Applied 4 | . 4 . . no_distress 3 | . 3 . . find_recycling 1 | . 1 . . Relay Couplers Released . | . . . . Robots Rewired . | . . . . Allies Hacked . | . . . . Hacks Repelled . | . . . . Allies | -11 -10 -9 -9 -------- Run | Scr Mat Mat Min Total Allies . | . . . . Largest Group . | . . . . Highest-Rated Group . | . . . . Highest-Rated Ally . | . . . . Total Orders . | . . . . Ally Attacks . | . . . . Total Damage . | . . . . Kills . | . . . . Allies Corrupted . | . . . . Allies Melted . | . . . . Intel | -11 -10 -9 -9 ------- Run | Scr Mat Mat Min Robot Analysis Total . | . . . . Derelict Logs Recovered 1 | . . . 1 Drone Launches . | . . . . Drone Recoveries . | . . . . Exploration | -11 -10 -9 -9 ------------- Run | Scr Mat Mat Min Turns Passed 1799 | 54 823 562 360 Spaces Moved 984 | 39 458 286 201 Core 14 | 5 . . 9 Treads . | . . . . Legs 970 | 34 458 286 192 Wheels . | . . . . Hover . | . . . . Flight . | . . . . Fastest Speed 50 | 50 120 120 120 Average Speed 121 | 112 120 120 127 Slowest Speed 200 | 120 120 150 200 Overloaded Moves . | . . . . Propulsion Burnouts . | . . . . Robots Hopped . | . . . . Cave-ins Triggered . | . . . . Exploration Rate (%) 32 | 3 61 19 48 Regions Visited 3 Branch Regions 1 Pre-discovered Areas . | . . . . Known Exits Taken . | . . . . Unknown Exits Taken 3 | 1 1 1 . Scrap Searched . | . . . . Spaces Dug . | . . . . Terrain Destroyed 38 | . . . 38 Melee . | . . . . Projectile 1 | . . . 1 AOE 37 | . . . 37 Actions | -11 -10 -9 -9 --------- Run | Scr Mat Mat Min Total 1417 | 46 684 428 259 Wait 232 | . 161 67 4 Move 981 | 38 457 285 201 Hop . | . . . . Pick Up 18 | 2 8 5 3 Fast Attach 16 | 6 3 4 3 Attach 16 | . 1 4 11 Detach 4 | . 1 1 2 Swap 20 | . 8 10 2 Drop 14 | . 7 7 . Fire 110 | . 34 45 31 Melee 4 | . 4 . . Ram . | . . . . Kick 2 | . . . 2 Crush . | . . . . Escape Stasis . | . . . . Rewire . | . . . . Trap . | . . . . Miscellaneous . | . . . . Route ------- -11/Scrapyard -10/Materials (discovered 3 exits: *Mat x2 / [*Min]) -9/Materials -9/Mines History --------- Turn | Location | Event 9 | -11/Scrapyard | Discovered new exit (range 16) 55 | -11/Scrapyard | Entered Materials 310 | -10/Materials | Build established: Mutant 313 | -10/Materials | Discovered new exit (range 18) 542 | -10/Materials | Discovered new exit (range 8) 600 | -10/Materials | Discovered new exit (range 15) 746 | -10/Materials | Core integrity fell below 50% 878 | -10/Materials | Entered another Materials area 878 | -9/Materials | Evolved 2 slots: Propulsion x1, Utility x1 988 | -9/Materials | Discovered new exit (range 15) 1108 | -9/Materials | Lost 4 parts (2n1u1w) 1440 | -9/Materials | Entered Mines 1522 | -9/Mines | Assembled infested the area 1554 | -9/Mines | Core integrity fell below 50% 1576 | -9/Mines | Destroyed 7 combat bots 1636 | -9/Mines | Lost 10 parts (1p3n2u4w) 1705 | -9/Mines | Learned location of 1 exit from Proximity Caves 1788 | -9/Mines | Core integrity fell below 20% 1800 | -9/Mines | Destroyed by L-31 Rogue with Katana Last Messages --------------- 01673_ Acquired Aluminum Leg. 01674_ Acquired 21 matter. 01675_ 2:FIB1BAKG1MYCULZYV1CDF 01680_ Acquired Aluminum Leg. 01687_ Acquired 20 matter. 01696_ System corrupted: Energy discharge (-31). 01705_ Acquired derelict log, extracted data. Data stored: Proximity Caves exits (x1). 01705_ T-07 Excavator is excavating. 01731_ LWL9IU=HOBED/RMLRETT:Y3KLPQS,3V1>% KFGFM 01745_ EM Pulse Gun destroyed. 01766_ Datajack destroyed. 01773_ Welding Torch destroyed. 01773_ Aluminum Leg destroyed. 01778_ Mining Laser destroyed. 01778_ Aluminum Leg destroyed. 01781_ Kicked L-31 Rogue out of the way. 01786_ Aluminum Leg destroyed. 01786_ Imp. Terrain Scanner destroyed. 01790_ Lgt. Ion Engine destroyed. Map ----- +----------------------------------------------------+ | ???????????????????????????#??????????????????? | | ????????????????????????????? ##??????#???????? | | ???????????????????????#?#?? ?????? ??????????? | | ????????????????????? ???? ??#??? ?????????? | | ???????????????????? ??? ?????????""?????????? | | #??#?#??????????###????#??????### ??? ?#??????? | | ? ??????????????#???#??#? ???????"?? #???????? | | #????????????????????#??????????????? #???????? | | ???????#?????????###??? ????#???# ? ? #???????? | | ????????#?? ? ? ?#???? ? ?#?##???#? #???????? | | ???????? ???? ??????# ????#?###??## #?#???#?? | | ? ??###?? ????? ###???#?? ???# ? ##????#?? | | ??? ??? ?????#???????? ??# #?##? #??#????? | | #??? ??????? ????? ?????## #?#?? #???????? | | ????# #?? ??#??? ? ????#### ###?? #??##??#? | | ###?#%#????##?? ?? ???# ##### #?#?????? | | ??#?# #???#??????? ???##?# "# #?## ##??#???? | | ??### #?#??#???#??? ???###%## ### ###????? | | ##### #??#???###?#?#?##?## % #??#???# | | #* % ############ ##?#?# """ ##?#???? | | % %* ###?## """ ##??????? | | !% ####### """ ###??#????# | | ### #########?## ### ###?#?????#? | | ##?# ####?##??#??# ## ##?#??#??#?? | | ##?## #?########### ## #?????????? | | ####?# #### @l #?#???#?#?? | | ##?### u ##?#??#???? | | ##???###### ######### #####??????? | | ?#??#???#?# ##??#???## ##?#????????? | | ###???????# #??#????##### #???#???????? | | #???###???# #####??##???#?## #????#??????? | | #??#??#???###?#??#?##?##?#?# ##??#?#?????#? | | ????##???????????#?##??????# ##????????????? | | ?#?#????#???#???#??????###?## ##?????????????? | | ??#?#??#???#??##??????????#?####??????????????? | | ??????????#??#????????????????????????????????? | | ???#???##?????#???????#???????????????????????? | | ???????#?????????????#?????????#??????????????? | | ?????????#??????????#??#??##??????????????????? | | ??????#??#??#?????#????????????#??????????????? | | ??????????????????????????????#?#?????????????? | | | | | | | | | | | | | | | | | | | +----------------------------------------------------+ Best States ------------- Heat Dissipation 38 Energy Generation 10 Energy Capacity 250 Matter Stores 300 Matter Capacity 300 Sight Range 16 Terrain Scan Range 16 Terrain Scan Density 60 Armor Coverage 225 Evasion (%) 40 Targeting Accuracy 5 Item Schematics ----------------- Spread Laser | -9/Materials | Scanalyzed Robot Schematics ------------------ None Fabricated ------------ Nothing Alien Tech Used ----------------- None Achievements -------------- None Challenges ------------ None Game ------ Seed PrecisionNovaGreatsword Manual? 0 Play Time 00:24:09 Cumulative 14.1 hours Start 2020.01.05 @ 17:38:55 End 2020.01.05 @ 20:02:34 Sessions 1 Manual Loads 0 Difficulty Rogue Special Mode None Game No. 28 Rogue 28 Adventurer 0 Explorer 0 Win Type - Total 0 Types 0/0/0/0/0/0/0 Lore% 17 Gallery% 15 Achievement% 14 Wizard Run 0 Options --------- ASCII 0 Keyboard 1 Movement Numpad Keybinds 0 Fullscreen 2 Font 18/X11 Map View 76x50 Tactical HUD 1 Map Filters NONE Filters NONE Steam 1 RUN: 1c26453a-0936-453b-bf82-90e95815144c